fUST/lending_fUST_20250708
["ID","MTS","AMOUNT","RATE_DAILY","PERIOD"]
[370333997,1751963448151,-151.0,0.00019452,2]
[370333999,1751963448161,-460.0,0.00019452,2]
[370334001,1751963448171,-151.0,0.00019452,2]
[370334003,1751963448181,-537.07,0.00019452,2]
[370334005,1751963448191,-554.82555847,0.00019452,2]
[370334007,1751963448200,-460.0,0.00019452,2]
[370334009,1751963448210,-2332.03,0.00019452,2]
[370334011,1751963448220,-460.0,0.00019452,2]
[370334013,1751963448229,-460.0,0.00019452,2]
[370334015,1751963448239,-460.0,0.00019452,2]
[370334017,1751963448248,-460.0,0.00019452,2]
[370334019,1751963448257,-284.73578399,0.00019452,2]
[370334021,1751963448266,-460.0,0.00019452,2]
[370334023,1751963448277,-460.0,0.00019452,2]
[370334025,1751963448286,-460.0,0.00019452,2]
[370334027,1751963448296,-460.0,0.00019452,2]
[370334029,1751963448306,-460.0,0.00019452,2]
[370334031,1751963448315,-611.01,0.00019452,2]
[370334033,1751963448325,-917.82,0.00019452,2]
[370334035,1751963448334,-457.79734137,0.00019452,2]
[370334037,1751963448344,-460.0,0.00019452,2]
[370334039,1751963448354,-460.0,0.00019452,2]
[370334041,1751963448364,-249.12,0.00019452,2]
[370334043,1751963448374,-460.0,0.00019452,2]
[370334045,1751963448383,-460.0,0.00019452,2]
[370334047,1751963448392,-460.0,0.00019452,2]
[370334049,1751963448402,-466.57200135,0.00019452,2]
[370334051,1751963448412,-462.09673237,0.00019452,2]
[370334053,1751963448421,-460.0,0.00019452,2]
[370334055,1751963448431,-463.92787627,0.00019452,2]
[370334057,1751963448440,-1496.44,0.00019452,2]
[370334059,1751963448449,-460.0,0.00019452,2]
[370334061,1751963448459,-977.63,0.00019452,2]
[370334063,1751963448468,-1258.66,0.00019452,2]
[370334065,1751963448478,-460.0,0.00019452,2]
[370334067,1751963448488,-460.0,0.00019452,2]
[370334069,1751963448498,-472.55883697,0.00019452,2]
[370334071,1751963448511,-460.0,0.00019452,2]
[370334073,1751963448520,-460.0,0.00019452,2]
[370334075,1751963448529,-460.0,0.00019452,2]
[370334077,1751963448539,-460.0,0.00019452,2]
[370334079,1751963448548,-460.0,0.00019452,2]
[370334081,1751963448557,-602.73,0.00019452,2]
[370334083,1751963448566,-215.743119,0.00019452,2]
[370334085,1751963448575,-1773.54,0.00019452,2]
[370334087,1751963448584,-215.743119,0.00019452,2]
[370334089,1751963448594,-460.0,0.00019452,2]
[370334091,1751963448603,-460.0,0.00019452,2]
[370334093,1751963448613,-460.0,0.00019452,2]
[370334095,1751963448622,-466.53006277,0.00019452,2]
[370334096,1751963448631,-2419.34,0.00019452,2]
[370334098,1751963448641,-460.0,0.00019452,2]
[370334100,1751963448651,-460.0,0.00019452,2]
[370334102,1751963448660,-203.410877,0.00019452,2]
[370334104,1751963448669,-460.0,0.00019452,2]
[370334106,1751963448679,-203.410877,0.00019452,2]
[370334108,1751963448688,-2264.4,0.00019452,2]
[370334111,1751963448698,-460.0,0.00019452,2]
[370334113,1751963448708,-545.09594715,0.00019452,2]
[370334115,1751963448719,-221.857968,0.00019452,2]
[370334116,1751963448728,-460.0,0.00019452,2]
[370334118,1751963448737,-221.857968,0.00019452,2]
[370334120,1751963448747,-294.38335857,0.00019452,2]
[370334122,1751963448756,-854.85,0.00019452,2]
[370334124,1751963448766,-460.0,0.00019452,2]
[370334126,1751963448775,-221.857968,0.00019452,2]
[370334128,1751963448784,-460.0,0.00019452,2]
[370334140,1751963448894,-221.857968,0.00019452,2]
[370334142,1751963448905,-460.0,0.00019452,2]
[370334144,1751963448915,-476.02499081,0.00019452,2]
[370334146,1751963448925,-693.13,0.00019452,2]
[370334148,1751963448937,-460.0,0.00019452,2]
[370334150,1751963448947,-460.0,0.00019452,2]
[370334152,1751963448957,-498.01,0.00019452,2]
[370334154,1751963448967,-460.0,0.00019452,2]
[370334156,1751963448976,-1205.58,0.00019452,2]
[370334158,1751963448985,-879.84,0.00019452,2]
[370334160,1751963448995,-460.0,0.00019452,2]
[370334161,1751963449004,-460.0,0.00019452,2]
[370334162,1751963449014,-469.8692661,0.00019452,2]
[370334163,1751963449024,-460.0,0.00019452,2]
[370334164,1751963449035,-697.16,0.00019452,2]
[370334165,1751963449044,-460.0,0.00019452,2]
[370334166,1751963449053,-460.0,0.00019452,2]
[370334167,1751963449063,-460.0,0.00019452,2]
[370334168,1751963449072,-460.0,0.00019452,2]
[370334169,1751963449081,-460.0,0.00019452,2]
[370334171,1751963449091,-460.0,0.00019452,2]
[370334173,1751963449101,-460.0,0.00019452,2]
[370334175,1751963449110,-460.0,0.00019452,2]
[370334177,1751963449120,-473.34,0.00019452,2]
[370334179,1751963449129,-460.0,0.00019452,2]
[370334181,1751963449138,-460.0,0.00019452,2]
[370334183,1751963449148,-460.0,0.00019452,2]
[370334185,1751963449157,-460.0,0.00019452,2]
[370334187,1751963449167,-460.0,0.00019452,2]
[370334189,1751963449177,-460.0,0.00019452,2]
[370334191,1751963449186,-1249.39,0.00019452,2]
[370334193,1751963449196,-221.0841764,0.00019452,2]
[370334195,1751963449206,-523.39305156,0.00019452,2]
[370334197,1751963449215,-460.0,0.00019452,2]
[370334199,1751963449225,-460.0,0.00019452,2]
[370334201,1751963449234,-540.0,0.00019452,2]
[370334203,1751963449244,-460.0,0.00019452,2]
[370334205,1751963449254,-778.35,0.00019452,2]
[370334207,1751963449264,-881.46,0.00019452,2]
[370334209,1751963449273,-460.0,0.00019452,2]
[370334211,1751963449283,-460.0,0.00019452,2]
[370334213,1751963449292,-460.0,0.00019452,2]
[370334215,1751963449301,-460.0,0.00019452,2]
[370334217,1751963449311,-460.0,0.00019452,2]
[370334219,1751963449320,-460.0,0.00019452,2]
[370334221,1751963449330,-631.33,0.00019452,2]
[370334222,1751963449339,-460.0,0.00019452,2]
[370334225,1751963449349,-460.0,0.00019452,2]
[370334226,1751963449358,-460.0,0.00019452,2]
[370334229,1751963449367,-555.23780746,0.00019452,2]
[370334231,1751963449377,-460.0,0.00019452,2]
[370334233,1751963449386,-460.0,0.00019452,2]
[370334235,1751963449395,-460.0,0.00019452,2]
[370334237,1751963449404,-463.77159539,0.00019452,2]
[370334239,1751963449414,-460.0,0.00019452,2]
[370334241,1751963449424,-460.0,0.00019452,2]
[370334243,1751963449435,-460.0,0.00019452,2]
[370334245,1751963449445,-460.0,0.00019452,2]
[370334247,1751963449454,-460.0,0.00019452,2]
[370334249,1751963449464,-152.913754,0.00019452,2]
[370334251,1751963449474,-460.0,0.00019452,2]
[370334253,1751963449483,-460.0,0.00019452,2]
[370334255,1751963449493,-460.0,0.00019452,2]
[370334257,1751963449505,-460.0,0.00019452,2]
[370334259,1751963449516,-2197.66,0.00019452,2]
[370334261,1751963449525,-153.0,0.00019452,2]
[370334263,1751963449534,-153.0,0.00019452,2]
[370334265,1751963449544,-575.597667,0.00019452,2]
[370334267,1751963449553,-153.0,0.00019452,2]
[370334269,1751963449563,-153.0,0.00019452,2]
[370334270,1751963449573,-890.64427428,0.00019463,2]
[370334272,1751963449584,-274.1828622,0.00019518,2]
[370334275,1751963449593,-151.0,0.0001955,2]
[370334276,1751963449603,-705.119459,0.00019599,2]
[370334278,1751963449612,-151.0,0.000196,2]
[370334280,1751963449621,-1622.34468089,0.00019624,2]
[370334282,1751963449630,-168.0,0.00019642,2]
[370334284,1751963449640,-151.0,0.000197,2]
[370334286,1751963449649,-642.24426031,0.00019721,2]
[370334288,1751963449658,-774.93369156,0.00019721,2]
[370334290,1751963449668,-961.31968112,0.00019721,2]
[370334292,1751963449677,-1000.0,0.00019721,2]
[370334294,1751963449686,-550.73274889,0.00019721,2]
[370334296,1751963449696,-542.41697075,0.00019721,2]
[370334298,1751963449706,-1000.0,0.00019721,2]
[370334300,1751963449716,-500.0,0.00019721,2]
[370334302,1751963449725,-154.0768696,0.00019721,2]
[370334304,1751963449735,-1000.0,0.00019721,2]
[370334306,1751963449744,-151.0,0.00019721,2]
[370334308,1751963449753,-160.180061,0.00019721,2]
[370334310,1751963449762,-160.180061,0.00019721,2]
[370334312,1751963449772,-151.0,0.00019721,2]
[370334314,1751963449781,-151.0,0.00019721,2]
[370334316,1751963449791,-215.743119,0.00019721,2]
[370334318,1751963449801,-215.743119,0.00019721,2]
[370334320,1751963449810,-203.410877,0.00019721,2]
[370334322,1751963449820,-203.410877,0.00019721,2]
[370334324,1751963449830,-407.09824466,0.00019726,2]
[370334326,1751963449839,-151.0,0.00019726,2]
[370334328,1751963449849,-151.0,0.00019726,2]
[370334330,1751963449858,-1628.39297864,0.00019726,2]
[370334332,1751963449868,-460.0,0.00019726,2]
[370334334,1751963449878,-151.0,0.00019726,2]
[370334336,1751963449887,-151.0,0.00019726,2]
[370334338,1751963449897,-3660.22031773,0.00019726,2]
[370334340,1751963449906,-381.05363,0.00019726,2]
[370334342,1751963449916,-381.05363,0.00019726,2]
[370334344,1751963449925,-360.36497678,0.00019726,2]
[370334346,1751963449936,-151.0,0.00019726,2]
[370334348,1751963449945,-223.720136,0.00019726,2]
[370334350,1751963449954,-154.403203,0.00019726,2]
[370334352,1751963449963,-154.403203,0.00019726,2]
[370334354,1751963449973,-151.0,0.00019726,2]
[370334356,1751963449981,-460.0,0.00019726,2]
[370334358,1751963449991,-151.0,0.00019726,2]
[370334360,1751963450000,-168.391571,0.00019726,2]
[370334362,1751963450009,-151.0,0.00019726,2]
[370334364,1751963450019,-151.0,0.00019726,2]
[370334366,1751963450028,-151.0,0.00019726,2]
[370334368,1751963450037,-160.0,0.00019726,2]
[370334370,1751963450047,-299.03445935,0.00019726,2]
[370334372,1751963450056,-460.0,0.00019726,2]
[370334374,1751963450065,-460.0,0.00019726,2]
[370334376,1751963450074,-460.0,0.00019726,2]
[370334378,1751963450083,-151.0,0.00019726,2]
[370334380,1751963450092,-460.0,0.00019726,2]
[370334382,1751963450102,-462.47473298,0.00019726,2]
[370334384,1751963450111,-460.0,0.00019726,2]
[370334386,1751963450121,-460.0,0.00019726,2]
[370334388,1751963450130,-460.0,0.00019726,2]
[370334390,1751963450140,-331.31,0.00019726,2]
[370334392,1751963450149,-460.0,0.00019726,2]
[370334394,1751963450158,-460.0,0.00019726,2]
[370334396,1751963450168,-460.0,0.00019726,2]
[370334398,1751963450177,-460.0,0.00019726,2]
[370334400,1751963450187,-372.82655283,0.00019726,2]
[370334402,1751963450196,-460.0,0.00019726,2]
[370334404,1751963450205,-460.0,0.00019726,2]
[370334406,1751963450214,-460.0,0.00019726,2]
[370334408,1751963450224,-460.0,0.00019726,2]
[370334410,1751963450233,-460.0,0.00019726,2]
[370334412,1751963450242,-460.0,0.00019726,2]
[370334415,1751963450252,-463.80301924,0.00019726,2]
[370334417,1751963450262,-460.0,0.00019726,2]
[370334419,1751963450272,-646.89,0.00019726,2]
[370334421,1751963450281,-460.0,0.00019726,2]
[370334423,1751963450290,-460.0,0.00019726,2]
[370334425,1751963450299,-460.0,0.00019726,2]
[370334427,1751963450308,-460.0,0.00019726,2]
[370334429,1751963450318,-460.0,0.00019726,2]
[370334431,1751963450327,-460.0,0.00019726,2]
[370334433,1751963450336,-460.0,0.00019726,2]
[370334435,1751963450346,-460.0,0.00019726,2]
[370334437,1751963450355,-465.95250951,0.00019726,2]
[370334439,1751963450364,-1236.45,0.00019726,2]
[370334441,1751963450374,-460.0,0.00019726,2]
[370334443,1751963450383,-151.0,0.00019726,2]
[370334445,1751963450392,-460.0,0.00019726,2]
[370334447,1751963450402,-151.0,0.00019726,2]
[370334449,1751963450412,-2332.03,0.00019726,2]
[370334451,1751963450421,-460.0,0.00019726,2]
[370334453,1751963450430,-460.0,0.00019726,2]
[370334455,1751963450440,-460.0,0.00019726,2]
[370334457,1751963450449,-460.0,0.00019726,2]
[370334459,1751963450458,-393.48169668,0.00019726,2]
[370334461,1751963450467,-460.0,0.00019726,2]
[370334463,1751963450476,-611.01,0.00019726,2]
[370334465,1751963450485,-917.82,0.00019726,2]
[370334467,1751963450495,-460.0,0.00019726,2]
[370334469,1751963450509,-460.0,0.00019726,2]
[370334471,1751963450518,-460.0,0.00019726,2]
[370334472,1751963450528,-460.0,0.00019726,2]
[370334475,1751963450538,-1496.44,0.00019726,2]
[370334477,1751963450547,-1258.66,0.00019726,2]
[370334478,1751963450556,-977.63,0.00019726,2]
[370334480,1751963450567,-460.0,0.00019726,2]
[370334483,1751963450577,-460.0,0.00019726,2]
[370334484,1751963450587,-602.73,0.00019726,2]
[370334486,1751963450596,-215.743119,0.00019726,2]
[370334488,1751963450605,-1773.54,0.00019726,2]
[370334490,1751963450615,-215.743119,0.00019726,2]
[370334492,1751963450624,-460.0,0.00019726,2]
[370334494,1751963450633,-2419.34,0.00019726,2]
[370334496,1751963450642,-460.0,0.00019726,2]
[370334498,1751963450651,-203.410877,0.00019726,2]
[370334500,1751963450661,-203.410877,0.00019726,2]
[370334502,1751963450671,-2264.4,0.00019726,2]
[370334504,1751963450680,-460.0,0.00019726,2]
[370334506,1751963450689,-460.0,0.00019726,2]
[370334508,1751963450698,-221.857968,0.00019726,2]
[370334510,1751963450707,-854.85,0.00019726,2]
[370334512,1751963450716,-460.0,0.00019726,2]
[370334513,1751963450726,-221.857968,0.00019726,2]
[370334515,1751963450735,-460.0,0.00019726,2]
[370334517,1751963450745,-693.13,0.00019726,2]
[370334519,1751963450755,-498.01,0.00019726,2]
[370334531,1751963450853,-1205.58,0.00019726,2]
[370334533,1751963450863,-460.0,0.00019726,2]
[370334535,1751963450872,-879.84,0.00019726,2]
[370334537,1751963450882,-460.0,0.00019726,2]
[370334539,1751963450892,-460.0,0.00019726,2]
[370334541,1751963450901,-697.16,0.00019726,2]
[370334543,1751963450911,-460.0,0.00019726,2]
[370334545,1751963450921,-460.0,0.00019726,2]
[370334547,1751963450931,-460.0,0.00019726,2]
[370334548,1751963450940,-460.0,0.00019726,2]
[370334550,1751963450949,-573.71,0.00019726,2]
[370334552,1751963450958,-460.0,0.00019726,2]
[370334554,1751963450967,-460.0,0.00019726,2]
[370334556,1751963450976,-460.0,0.00019726,2]
[370334558,1751963450985,-460.0,0.00019726,2]
[370334560,1751963450995,-1249.39,0.00019726,2]
[370334562,1751963451004,-460.0,0.00019726,2]
[370334564,1751963451013,-778.35,0.00019726,2]
[370334566,1751963451023,-881.46,0.00019726,2]
[370334568,1751963451032,-460.0,0.00019726,2]
[370334570,1751963451041,-460.0,0.00019726,2]
[370334572,1751963451051,-631.33,0.00019726,2]
[370334574,1751963451060,-460.0,0.00019726,2]
[370334576,1751963451069,-460.0,0.00019726,2]
[370334578,1751963451078,-596.1,0.00019726,2]
[370334579,1751963451087,-460.0,0.00019726,2]
[370334581,1751963451097,-460.0,0.00019726,2]
[370334583,1751963451107,-460.0,0.00019726,2]
[370334585,1751963451117,-460.0,0.00019726,2]
[370334587,1751963451127,-460.0,0.00019726,2]
[370334589,1751963451136,-2197.66,0.00019726,2]
[370334591,1751963451146,-150.0,0.0001975,2]
[370334593,1751963451156,-274.262,0.000198,2]
[370334595,1751963451165,-160.180061,0.00019814,2]
[370334597,1751963451175,-160.180061,0.00019814,2]
[370334599,1751963451185,-151.0,0.00019814,2]
[370334601,1751963451195,-151.0,0.00019825,2]
[370334603,1751963451204,-2153.0,0.00019825,2]
[370334605,1751963451215,-407.0,0.00019825,2]
[370334607,1751963451225,-1622.34468089,0.00019866,2]
[370334609,1751963451241,-1304.66,0.000199,2]
[370334611,1751963451251,-151.0,0.000199,2]
[370334613,1751963451261,-286.0,0.00019916,2]
[370334615,1751963451271,-286.0,0.00019918,2]
[370334617,1751963451281,-1774.34,0.00019936,3]
[370334619,1751963451290,-887.16,0.00019936,3]
[370334621,1751963451300,-443.58,0.00019936,3]
[370334623,1751963451310,-105249.29425,0.00019998,2]
[370334625,1751963451320,-151.0,0.00019999,2]
[370334627,1751963451329,-273.42904,0.00019999,2]
[370334629,1751963451338,-4000.0,0.0002,4]
[370334631,1751963451347,-6960.0,0.0002,2]
[370334633,1751963451356,-8815.0,0.0002,2]
[370334635,1751963451365,-170.96235,0.0002,2]
[370334637,1751963451374,-202.853009,0.0002,2]
[370334639,1751963451383,-202.853009,0.0002,2]
[370334641,1751963451393,-202.853009,0.0002,2]
[370334643,1751963451402,-202.853009,0.0002,2]
[370334644,1751963451411,-151.906628,0.0002,2]
[370334646,1751963451421,-154.097692,0.0002,2]
[370334648,1751963451431,-151.0,0.0002,2]
[370334650,1751963451440,-300.814054,0.0002,2]
[370334652,1751963451449,-151.0,0.0002,2]
[370334654,1751963451458,-151.0,0.0002,2]
[370334656,1751963451468,-151.0,0.0002,2]
[370334658,1751963451478,-381.05363,0.0002,2]
[370334660,1751963451487,-381.05363,0.0002,2]
[370334662,1751963451496,-151.0,0.0002,2]
[370334664,1751963451511,-154.403203,0.0002,2]
[370334666,1751963451520,-154.403203,0.0002,2]
[370334668,1751963451529,-151.0,0.0002,2]
[370334670,1751963451538,-460.0,0.0002,2]
[370334672,1751963451549,-151.0,0.0002,2]
[370334674,1751963451559,-151.0,0.0002,2]
[370334676,1751963451568,-500.0,0.0002,2]
[370334678,1751963451578,-160.180061,0.0002,2]
[370334680,1751963451588,-160.180061,0.0002,2]
[370334682,1751963451597,-460.0,0.0002,2]
[370334683,1751963451606,-460.0,0.0002,2]
[370334685,1751963451616,-460.0,0.0002,2]
[370334687,1751963451626,-151.0,0.0002,2]
[370334689,1751963451635,-491.71760817,0.0002,2]
[370334691,1751963451644,-460.0,0.0002,2]
[370334693,1751963451654,-460.0,0.0002,2]
[370334695,1751963451663,-460.0,0.0002,2]
[370334697,1751963451672,-380.74865755,0.0002,2]
[370334699,1751963451681,-646.89,0.0002,2]
[370334701,1751963451691,-460.0,0.0002,2]
[370334703,1751963451700,-460.0,0.0002,2]
[370334705,1751963451709,-460.0,0.0002,2]
[370334707,1751963451718,-1752.163239,0.0002,2]
[370334709,1751963451727,-460.0,0.0002,2]
[370334711,1751963451737,-151.0,0.0002,2]
[370334713,1751963451746,-188.237889,0.0002,30]
[370334715,1751963451755,-1236.45,0.0002,2]
[370334717,1751963451765,-460.0,0.0002,2]
[370334718,1751963451774,-151.0,0.0002,2]
[370334720,1751963451784,-460.0,0.0002,2]
[370334722,1751963451793,-151.0,0.0002,2]
[370334724,1751963451803,-2332.03,0.0002,2]
[370334726,1751963451812,-460.0,0.0002,2]
[370334728,1751963451822,-460.0,0.0002,2]
[370334730,1751963451832,-460.0,0.0002,2]
[370334732,1751963451842,-611.01,0.0002,2]
[370334734,1751963451851,-917.82,0.0002,2]
[370334736,1751963451861,-460.0,0.0002,2]
[370334738,1751963451871,-460.0,0.0002,2]
[370334740,1751963451880,-460.0,0.0002,2]
[370334742,1751963451890,-460.0,0.0002,2]
[370334744,1751963451899,-1496.44,0.0002,2]
[370334746,1751963451909,-1258.66,0.0002,2]
[370334748,1751963451918,-977.63,0.0002,2]
[370334750,1751963451928,-460.0,0.0002,2]
[370334752,1751963451938,-460.0,0.0002,2]
[370334754,1751963451947,-602.73,0.0002,2]
[370334756,1751963451956,-215.743119,0.0002,2]
[370334758,1751963451965,-1773.54,0.0002,2]
[370334759,1751963451974,-215.743119,0.0002,2]
[370334761,1751963451984,-2419.34,0.0002,2]
[370334763,1751963451993,-460.0,0.0002,2]
[370334765,1751963452002,-203.410877,0.0002,2]
[370334767,1751963452012,-2264.4,0.0002,2]
[370334769,1751963452021,-203.410877,0.0002,2]
[370334771,1751963452030,-460.0,0.0002,2]
[370334773,1751963452039,-221.857968,0.0002,2]
[370334775,1751963452049,-854.85,0.0002,2]
[370334777,1751963452058,-506.34,0.0002,2]
[370334779,1751963452068,-221.857968,0.0002,2]
[370334781,1751963452077,-460.0,0.0002,2]
[370334783,1751963452087,-693.13,0.0002,2]
[370334785,1751963452097,-498.01,0.0002,2]
[370334787,1751963452106,-460.0,0.0002,2]
[370334789,1751963452115,-879.84,0.0002,2]
[370334791,1751963452124,-1205.58,0.0002,2]
[370334793,1751963452133,-460.0,0.0002,2]
[370334795,1751963452142,-460.0,0.0002,2]
[370334797,1751963452152,-697.16,0.0002,2]
[370334799,1751963452161,-460.0,0.0002,2]
[370334801,1751963452170,-460.0,0.0002,2]
[370334802,1751963452179,-460.0,0.0002,2]
[370334804,1751963452188,-460.0,0.0002,2]
[370334806,1751963452198,-460.0,0.0002,2]
[370334808,1751963452208,-460.0,0.0002,2]
[370334810,1751963452217,-1249.39,0.0002,2]
[370334812,1751963452227,-460.0,0.0002,2]
[370334814,1751963452236,-778.35,0.0002,2]
[370334816,1751963452245,-881.46,0.0002,2]
[370334818,1751963452255,-460.0,0.0002,2]
[370334820,1751963452264,-460.0,0.0002,2]
[370334822,1751963452274,-631.33,0.0002,2]
[370334824,1751963452285,-460.0,0.0002,2]
[370334826,1751963452294,-460.0,0.0002,2]
[370334828,1751963452304,-559.36238194,0.0002,2]
[370334830,1751963452314,-460.0,0.0002,2]
[370334832,1751963452323,-390.43088292,0.0002,2]
[370334834,1751963452333,-2197.66,0.0002,2]
[370334836,1751963452343,-286.0,0.00020058,2]
[370334838,1751963452352,-1622.34468089,0.00020107,2]
[370334840,1751963452362,-194.685307,0.00020157,2]
[370334842,1751963452373,-274.0,0.00020244,2]
[370334844,1751963452382,-420.0,0.00020244,2]
[370334846,1751963452391,-194.685307,0.0002025,2]
[370334848,1751963452402,-1595.55529511,0.00020268,2]
[370334850,1751963452412,-1500.0,0.00020268,2]
[370334852,1751963452422,-202.853009,0.00020273,2]
[370334854,1751963452432,-202.853009,0.00020273,2]
[370334856,1751963452441,-151.0,0.00020273,2]
[370334858,1751963452451,-151.0,0.00020273,2]
[370334860,1751963452460,-283.669635,0.00020273,2]
[370334862,1751963452470,-151.0,0.00020273,2]
[370334864,1751963452479,-300.814054,0.00020273,2]
[370334866,1751963452488,-152.714907,0.00020273,2]
[370334868,1751963452498,-151.0,0.00020273,2]
[370334870,1751963452511,-155.385059,0.00020273,2]
[370334872,1751963452520,-151.0,0.00020273,2]
[370334873,1751963452529,-381.05363,0.00020273,2]
[370334875,1751963452539,-381.05363,0.00020273,2]
[370334877,1751963452548,-151.0,0.00020273,2]
[370334879,1751963452558,-154.403203,0.00020273,2]
[370334881,1751963452568,-154.403203,0.00020273,2]
[370334891,1751963452660,-151.0,0.00020273,2]
[370334893,1751963452670,-460.0,0.00020273,2]
[370334895,1751963452679,-151.0,0.00020273,2]
[370334897,1751963452689,-151.0,0.00020273,2]
[370334899,1751963452699,-311.33,0.00020273,2]
[370334901,1751963452708,-460.0,0.00020273,2]
[370334903,1751963452718,-265.72,0.00020273,2]
[370334905,1751963452728,-179.062464,0.00020273,2]
[370334907,1751963452738,-460.0,0.00020273,2]
[370334909,1751963452748,-500.0,0.00020273,2]
[370334911,1751963452757,-460.0,0.00020273,2]
[370334912,1751963452766,-646.89,0.00020273,2]
[370334913,1751963452776,-356.45583702,0.00020273,2]
[370334914,1751963452787,-460.0,0.00020273,2]
[370334915,1751963452796,-1236.45,0.00020273,2]
[370334916,1751963452806,-460.0,0.00020273,2]
[370334917,1751963452815,-151.0,0.00020273,2]
[370334918,1751963452825,-535.72,0.00020273,2]
[370334919,1751963452835,-151.0,0.00020273,2]
[370334920,1751963452844,-2332.03,0.00020273,2]
[370334921,1751963452854,-460.0,0.00020273,2]
[370334922,1751963452863,-460.0,0.00020273,2]
[370334923,1751963452873,-460.0,0.00020273,2]
[370334924,1751963452882,-611.01,0.00020273,2]
[370334925,1751963452892,-917.82,0.00020273,2]
[370334926,1751963452901,-460.0,0.00020273,2]
[370334927,1751963452911,-460.0,0.00020273,2]
[370334928,1751963452920,-460.0,0.00020273,2]
[370334929,1751963452930,-460.0,0.00020273,2]
[370334930,1751963452939,-1496.44,0.00020273,2]
[370334931,1751963452949,-1258.66,0.00020273,2]
[370334932,1751963452959,-977.63,0.00020273,2]
[370334934,1751963452968,-460.0,0.00020273,2]
[370334936,1751963452978,-460.0,0.00020273,2]
[370334938,1751963452987,-602.73,0.00020273,2]
[370334940,1751963452997,-215.743119,0.00020273,2]
[370334942,1751963453007,-1773.54,0.00020273,2]
[370334944,1751963453016,-215.743119,0.00020273,2]
[370334946,1751963453026,-2419.34,0.00020273,2]
[370334948,1751963453035,-460.0,0.00020273,2]
[370334950,1751963453045,-203.410877,0.00020273,2]
[370334952,1751963453054,-2264.4,0.00020273,2]
[370334954,1751963453065,-203.410877,0.00020273,2]
[370334956,1751963453074,-460.0,0.00020273,2]
[370334958,1751963453084,-221.857968,0.00020273,2]
[370334960,1751963453094,-854.85,0.00020273,2]
[370334962,1751963453103,-221.857968,0.00020273,2]
[370334964,1751963453113,-460.0,0.00020273,2]
[370334966,1751963453123,-693.13,0.00020273,2]
[370334968,1751963453132,-498.01,0.00020273,2]
[370334970,1751963453142,-463.51062378,0.00020273,2]
[370334972,1751963453151,-879.84,0.00020273,2]
[370334974,1751963453160,-1205.58,0.00020273,2]
[370334976,1751963453170,-460.0,0.00020273,2]
[370334978,1751963453180,-216.75,0.00020273,2]
[370334980,1751963453189,-697.16,0.00020273,2]
[370334982,1751963453198,-460.0,0.00020273,2]